bitfinex/quotes_BTCUSD_20251015
["timestamp","ask_amount","ask_price","bid_price","bid_amount"]
[1760517715536,0.54627801,113480.0,113470.0,0.1293458]
[1760517715744,0.1762425,113480.0,113470.0,0.1293458]
[1760517715951,0.54627801,113480.0,113470.0,0.1293458]
[1760517716161,0.91631352,113480.0,113470.0,0.1293458]
[1760517716368,0.17625804,113470.0,113460.0,0.21293127]
[1760517716569,0.54629355,113470.0,113460.0,0.14837917]
[1760517716775,0.54629355,113470.0,113460.0,0.34228009]
[1760517717001,0.54629355,113470.0,113460.0,0.11219689]
[1760517717212,0.54629355,113470.0,113460.0,0.00047689]
[1760517717421,0.91632906,113470.0,113460.0,0.00047689]
[1760517717636,0.54629355,113470.0,113460.0,0.11219689]
[1760517718073,0.17625804,113470.0,113460.0,0.11219689]
[1760517718258,0.54629355,113470.0,113460.0,0.11319689]
[1760517719441,0.54599217,113470.0,113460.0,0.11319689]
[1760517721238,0.54599217,113470.0,113460.0,0.00147689]
[1760517721387,0.54599217,113470.0,113460.0,0.11319689]
[1760517723454,0.17625804,113470.0,113460.0,0.11319689]
[1760517723643,0.54599217,113470.0,113460.0,0.11319689]
[1760517724690,0.17625804,113470.0,113460.0,0.11319689]
[1760517725569,0.17625804,113470.0,113460.0,0.28947046]
[1760517725745,0.17625804,113470.0,113460.0,0.32565274]
[1760517726886,0.17625804,113470.0,113460.0,0.14937917]
[1760517727234,0.54599217,113470.0,113460.0,0.14937917]
[1760517727758,0.54599217,113470.0,113460.0,0.32565274]
[1760517728159,0.17625804,113470.0,113460.0,0.32565274]
[1760517728755,0.1762425,113480.0,113470.0,0.17625804]
[1760517728960,0.17622888,113490.0,113470.0,0.17625804]
[1760517729221,0.54596301,113490.0,113480.0,0.11168]
[1760517729648,0.17625804,113470.0,113460.0,0.22274641]
[1760517729850,0.5459894,113480.0,113460.0,0.42411653]
[1760517730029,0.17625804,113470.0,113460.0,0.20184701]
[1760517730268,0.17625527,113480.0,113460.0,0.37812058]
[1760517730387,0.5459894,113480.0,113470.0,0.0186258]
[1760517730587,0.5459894,113480.0,113470.0,0.19488384]
[1760517730825,0.5459894,113480.0,113470.0,0.17625804]
[1760517731002,0.17625527,113480.0,113470.0,0.19388384]
[1760517731230,0.18504022,113490.0,113470.0,0.19388384]
[1760517731408,0.18504022,113490.0,113480.0,0.11168]
[1760517732022,0.55477435,113490.0,113480.0,0.11168]
[1760517733486,0.55477435,113490.0,113480.0,0.11268]
[1760517734006,0.37854392,113510.0,113490.0,0.17622698]
[1760517734207,0.5547412,113510.0,113490.0,0.17622698]
[1760517734347,0.17621145,113500.0,113490.0,0.17622698]
[1760517735149,0.17619592,113510.0,113490.0,0.19384967]
[1760517735355,0.17621145,113500.0,113490.0,0.19384967]
[1760517735661,0.17621145,113500.0,113490.0,0.30552967]
[1760517735899,0.17621145,113500.0,113490.0,0.28790698]
[1760517736492,0.54594558,113500.0,113490.0,0.17722698]
[1760517736703,0.54594558,113500.0,113490.0,0.11268]
[1760517736907,0.54594558,113500.0,113490.0,0.11168]
[1760517737280,0.54594558,113500.0,113490.0,0.11268]
[1760517738071,0.54594558,113500.0,113490.0,0.001]
[1760517738273,0.54594558,113500.0,113490.0,0.11264]
[1760517738861,0.54811771,113500.0,113490.0,0.11264]
[1760517741435,0.17838358,113500.0,113490.0,0.11264]
[1760517741621,0.54811771,113500.0,113490.0,0.11264]
[1760517741863,0.17838358,113500.0,113490.0,0.28886698]
[1760517742074,0.54811771,113500.0,113490.0,0.11264]
[1760517746876,2.26549471,113500.0,113490.0,0.001]
[1760517747301,2.26549471,113500.0,113490.0,0.11264]
[1760517747500,2.26549471,113500.0,113490.0,0.001]
[1760517748523,2.63522884,113500.0,113490.0,0.001]
[1760517748732,2.26549471,113500.0,113490.0,0.001]
[1760517752031,2.97522884,113500.0,113490.0,0.001]
[1760517754284,2.60549471,113500.0,113490.0,0.001]
[1760517755361,2.23576058,113500.0,113490.0,0.001]
[1760517755645,0.17838358,113500.0,113490.0,0.001]
[1760517755850,0.00217213,113500.0,113490.0,0.17722698]
[1760517757106,0.17838358,113500.0,113490.0,0.001]
[1760517757392,0.17838358,113500.0,113490.0,0.19455871]
[1760517757608,0.17838358,113500.0,113490.0,0.17722698]
[1760517758778,0.54811771,113500.0,113490.0,0.1126]
[1760517759279,0.17838358,113500.0,113490.0,0.1126]
[1760517760510,0.17838358,113500.0,113490.0,0.28882698]
[1760517760704,0.17838358,113500.0,113490.0,0.1126]
[1760517761030,0.17838358,113500.0,113490.0,0.28882698]
[1760517761974,0.17838358,113500.0,113490.0,0.1126]
[1760517774688,2.54097008,113500.0,113490.0,0.001]
[1760517774915,2.54097008,113500.0,113490.0,0.11256]
[1760517775442,2.54097008,113500.0,113490.0,0.001]
[1760517775782,0.82359308,113500.0,113490.0,0.001]
[1760517776777,0.17838358,113500.0,113490.0,0.001]
[1760517777278,0.82359308,113500.0,113490.0,0.001]
[1760517777662,0.59689081,113500.0,113490.0,0.001]
[1760517777903,0.77310226,113500.0,113490.0,0.001]
[1760517781466,0.91533187,113500.0,113490.0,0.001]
[1760517783544,0.54577166,113500.0,113490.0,0.001]
[1760517783775,0.91533187,113500.0,113490.0,0.001]
[1760517785729,0.91533187,113500.0,113490.0,0.17722698]
[1760517785730,0.54577166,113500.0,113490.0,0.17722698]
[1760517786084,0.17621145,113500.0,113490.0,0.17722698]
[1760517786514,0.18574736,113510.0,113500.0,0.17621145]
[1760517786726,0.18574736,113510.0,113500.0,0.28777145]
[1760517787075,0.00049814,113510.0,113500.0,0.65733166]
[1760517787803,0.00049814,113510.0,113500.0,0.28877145]
[1760517788009,0.00049814,113510.0,113500.0,1.50280182]
[1760517788906,0.00049814,113510.0,113500.0,0.7636814]
[1760517789117,0.00049814,113510.0,113500.0,1.50280182]
[1760517790301,0.00049814,113510.0,113500.0,1.50480182]
[1760517790522,0.00049814,113510.0,113500.0,1.12620406]
[1760517790887,0.00049814,113510.0,113500.0,1.49576427]
[1760517791289,0.00049814,113510.0,113500.0,1.12620406]
[1760517792025,0.00049814,113510.0,113500.0,1.13521924]
[1760517792165,0.00106752,113510.0,113500.0,1.50477945]
[1760517793173,0.00106752,113510.0,113500.0,1.13521924]
[1760517793884,0.00106752,113510.0,113500.0,1.50477945]
[1760517794085,0.00106752,113510.0,113500.0,0.76565903]
[1760517794283,0.00106752,113510.0,113500.0,1.50477945]
[1760517794724,0.00106752,113510.0,113500.0,1.13517924]
[1760517795318,0.00106752,113510.0,113500.0,1.50473945]
[1760517796481,0.00106752,113510.0,113500.0,1.13517924]
[1760517797389,0.00106752,113510.0,113500.0,1.50473945]
[1760517802848,0.00106752,113510.0,113500.0,1.87429966]
[1760517803049,0.00106752,113510.0,113500.0,0.76561903]
[1760517803257,0.00106752,113510.0,113500.0,1.50473945]
[1760517806434,0.00106752,113510.0,113500.0,1.02365924]
[1760517806637,0.00106752,113510.0,113500.0,0.64508385]
[1760517806804,0.00106752,113510.0,113500.0,0.75656385]
[1760517807009,0.00106752,113510.0,113500.0,1.12612406]
[1760517807209,0.00106752,113510.0,113500.0,0.003]
[1760517807210,0.54682365,113510.0,113500.0,0.003]
[1760517807411,0.54682365,113510.0,113500.0,0.11444]
[1760517808351,0.17726344,113510.0,113500.0,0.11144]
[1760517808489,0.54682365,113510.0,113500.0,0.11244]
[1760517809644,0.54682365,113510.0,113500.0,0.11444]
[1760517810620,0.91638386,113510.0,113500.0,0.003]
[1760517810949,2.63376086,113510.0,113500.0,0.003]
[1760517811803,0.17621145,113500.0,113490.0,0.11144]
[1760517811986,0.91533187,113500.0,113490.0,0.11144]
[1760517812558,0.1762425,113480.0,113470.0,0.07383168]
[1760517812781,0.54580271,113480.0,113470.0,0.18527168]
[1760517812986,0.54580271,113480.0,113470.0,0.11351958]
[1760517813426,0.54580271,113480.0,113470.0,0.28977762]
[1760517813599,0.1762425,113480.0,113470.0,0.28977762]
[1760517813799,0.31426007,113480.0,113470.0,0.28977762]
[1760517814005,0.2586224,113480.0,113470.0,0.29177762]
[1760517814218,0.2586224,113480.0,113470.0,0.11551958]
[1760517814391,0.1762425,113480.0,113470.0,0.11551958]
[1760517814766,0.54580271,113480.0,113470.0,0.29277762]
[1760517815221,0.54580271,113480.0,113470.0,0.11651958]
[1760517815222,0.91536292,113480.0,113470.0,0.11651958]
[1760517816093,0.91536292,113480.0,113470.0,0.11451958]
[1760517816582,0.91536292,113480.0,113470.0,0.11651958]
[1760517817009,0.91536292,113480.0,113470.0,0.11351958]
[1760517817223,0.91536292,113480.0,113470.0,0.11651958]
[1760517817438,2.41881842,113480.0,113470.0,0.11555958]
[1760517817663,2.41881842,113480.0,113470.0,0.00407958]
[1760517817851,2.41881842,113480.0,113470.0,0.00507958]
[1760517818631,1.8936195,113480.0,113470.0,0.00407958]
[1760517818831,2.41881842,113480.0,113470.0,0.00407958]
[1760517819239,2.41881842,113480.0,113470.0,0.00207958]
[1760517819440,2.41881842,113480.0,113470.0,0.00307958]
[1760517819981,2.41881842,113480.0,113470.0,0.00207958]
[1760517820417,2.41881842,113480.0,113470.0,0.00307958]
[1760517820619,0.1762425,113480.0,113470.0,0.00307958]
[1760517820961,0.70144142,113480.0,113470.0,0.00307958]
[1760517821584,0.72794846,113480.0,113470.0,0.00307958]
[1760517826246,2.44532546,113480.0,113470.0,0.00307958]
[1760517828058,2.53500754,113480.0,113470.0,0.00307958]
[1760517828230,2.53500754,113480.0,113430.0,0.0717521]
[1760517828231,0.17630465,113440.0,113430.0,0.0717521]
[1760517828461,0.70150357,113440.0,113430.0,0.0717521]
[1760517828597,0.17633311,113430.0,113420.0,0.11148]
[1760517828798,0.16198878,113430.0,113420.0,0.20117012]
[1760517828995,0.16198878,113430.0,113420.0,0.37750586]
[1760517829197,0.16198878,113430.0,113420.0,0.26602586]
[1760517829414,0.16198878,113430.0,113420.0,0.37765511]
[1760517830066,0.16198878,113430.0,113420.0,0.37965511]
[1760517830633,0.16198878,113430.0,113420.0,0.38065511]
[1760517831024,0.69616206,113430.0,113420.0,0.00314925]
[1760517831410,0.69616206,113430.0,113420.0,0.11462925]
[1760517831864,0.17096314,113430.0,113420.0,0.00314925]
[1760517832079,0.17096314,113430.0,113420.0,0.19711856]
[1760517832295,0.16198878,113430.0,113420.0,0.17948499]
[1760517832502,0.16198878,113430.0,113420.0,0.00314925]
[1760517832706,0.16198878,113430.0,113420.0,0.19711856]
[1760517832925,0.16198878,113430.0,113420.0,0.17948499]
[1760517837489,0.53193125,113430.0,113420.0,0.17948499]
[1760517838835,0.16198878,113430.0,113420.0,0.17948499]
[1760517839035,0.18535784,113440.0,113420.0,0.17948499]
[1760517839261,0.18535784,113440.0,113430.0,0.28780019]
[1760517839481,0.55504603,113450.0,113430.0,0.28780019]
[1760517839482,0.17629281,113450.0,113430.0,0.65774266]
[1760517839681,0.17630465,113440.0,113430.0,0.28780019]
[1760517840748,0.54623528,113450.0,113430.0,0.28780019]
[1760517840877,0.17630465,113440.0,113430.0,0.28780019]
[1760517841072,0.54617912,113440.0,113430.0,0.28780019]
[1760517842040,0.54617912,113440.0,113430.0,0.28980019]
[1760517842470,0.54617912,113440.0,113430.0,0.29080019]
[1760517843269,0.54617912,113440.0,113430.0,0.11448]
[1760517843480,0.54617676,113440.0,113430.0,0.003]
[1760517843807,0.54617676,113440.0,113430.0,0.11448]
[1760517845022,0.54617676,113440.0,113430.0,0.11675951]
[1760517846443,0.17623665,113440.0,113430.0,0.11675951]
[1760517846649,0.54617676,113440.0,113430.0,0.11675951]
[1760517847254,0.30801287,113440.0,113430.0,0.11675951]
[1760517847520,0.54624476,113440.0,113430.0,0.00527951]
[1760517847721,2.26362176,113440.0,113430.0,0.00527951]
[1760517848334,2.26362176,113440.0,113430.0,0.00327951]
[1760517848928,2.60362176,113440.0,113430.0,0.00327951]
[1760517849141,2.60362176,113440.0,113430.0,0.00227951]
[1760517849313,2.97356187,113440.0,113430.0,0.00227951]
[1760517849507,2.97356187,113440.0,113430.0,0.00327951]
[1760517850114,2.99000356,113440.0,113430.0,0.00327951]
[1760517852181,2.62006345,113440.0,113430.0,0.00327951]
[1760517854814,2.60362176,113440.0,113430.0,0.00327951]
[1760517855020,2.23368165,113440.0,113430.0,0.00327951]
[1760517855244,2.97356187,113440.0,113430.0,0.00327951]
[1760517855653,2.99001849,113440.0,113430.0,0.00327951]
[1760517856060,2.99001857,113440.0,113430.0,0.00327951]
[1760517857399,2.62007846,113440.0,113430.0,0.00327951]
[1760517858210,2.25013835,113440.0,113430.0,0.00327951]
[1760517858414,0.53276135,113440.0,113430.0,0.00327951]
[1760517858618,0.90270146,113440.0,113430.0,0.00327951]
[1760517859452,0.19276135,113440.0,113430.0,0.00327951]
[1760517860563,0.56270146,113440.0,113430.0,0.00327951]
[1760517863994,0.19276135,113440.0,113430.0,0.00327951]
[1760517866388,0.17630465,113440.0,113430.0,0.00327951]
[1760517868567,0.54624476,113440.0,113430.0,0.00327951]
[1760517868740,0.54624476,113440.0,113430.0,0.11471951]
[1760517869791,2.2801469,113440.0,113430.0,0.00327951]
[1760517871422,2.55630625,113440.0,113430.0,0.00327951]
[1760517871623,2.3137386,113440.0,113430.0,0.00327951]
[1760517871839,2.49004325,113440.0,113430.0,0.00327951]
[1760517874597,2.83004325,113440.0,113430.0,0.00327951]
[1760517875773,2.18394379,113440.0,113430.0,0.00327951]
[1760517875997,2.83004325,113440.0,113430.0,0.00327951]
[1760517878749,2.18394379,113440.0,113430.0,0.00327951]
[1760517878952,2.81351811,113440.0,113430.0,0.00327951]
[1760517880417,0.51630465,113440.0,113430.0,0.00327951]
[1760517882580,0.17630465,113440.0,113430.0,0.00327951]
[1760517884053,0.17630465,113440.0,113430.0,0.02091152]
[1760517884249,0.17630465,113440.0,113430.0,0.19723171]
[1760517884459,0.17630465,113440.0,113430.0,0.02091152]
[1760517884710,0.17630465,113440.0,113430.0,0.30863171]
[1760517884924,0.17630465,113440.0,113430.0,0.11467951]
[1760517885553,0.17630465,113440.0,113430.0,0.13231152]
[1760517887603,0.17630465,113440.0,113430.0,0.11467951]
[1760517889713,0.17630465,113440.0,113430.0,0.13231152]
[1760517894968,0.18543691,113450.0,113430.0,0.30863171]
[1760517895157,0.18543329,113450.0,113440.0,0.17630465]
[1760517895394,0.18543329,113450.0,113440.0,0.00170948]
[1760517896240,0.18543329,113450.0,113440.0,0.01933994]
[1760517898251,0.18543329,113450.0,113440.0,0.19664459]
[1760517898467,0.18543329,113450.0,113440.0,0.00270948]
[1760517898710,0.18543329,113450.0,113440.0,0.02033994]
[1760517899464,0.18543329,113450.0,113440.0,0.18935899]
[1760517899668,0.18511435,113460.0,113450.0,0.17628911]
[1760517900043,0.18511435,113460.0,113450.0,0.11249956]
[1760517902164,0.18611435,113460.0,113450.0,0.11249956]
[1760517903196,0.19508515,113460.0,113450.0,0.11249956]
[1760517904419,0.19508515,113460.0,113450.0,0.00113956]
[1760517904420,2.37145877,113460.0,113450.0,0.00113956]
[1760517905437,2.71145877,113460.0,113450.0,0.00113956]
[1760517905645,2.73797214,113460.0,113450.0,0.00113956]
[1760517911447,2.95254032,113460.0,113450.0,0.00113956]
[1760517911650,2.21271252,113460.0,113450.0,0.00113956]
[1760517912061,2.95254032,113460.0,113450.0,0.00113956]
[1760517912952,2.95254032,113460.0,113450.0,1e-08]
[1760517913201,3.42866693,113460.0,113450.0,1e-08]
[1760517913405,3.37516713,113460.0,113450.0,1e-08]
[1760517914352,3.00525323,113460.0,113450.0,1e-08]
[1760517916270,3.3586365,113460.0,113450.0,1e-08]
[1760517916508,3.37515264,113460.0,113450.0,1e-08]
[1760517916698,3.3586365,113460.0,113450.0,1e-08]
[1760517916900,3.37515264,113460.0,113450.0,1e-08]
[1760517917297,3.3586365,113460.0,113450.0,1e-08]
[1760517918058,3.44831858,113460.0,113450.0,1e-08]
[1760517918467,3.3586365,113460.0,113450.0,1e-08]
[1760517920048,3.37514893,113460.0,113450.0,1e-08]
[1760517920747,3.3586365,113460.0,113450.0,1e-08]
[1760517921320,3.37514559,113460.0,113450.0,1e-08]
[1760517924900,3.37513665,113460.0,113450.0,1e-08]
[1760517925771,3.46481873,113460.0,113450.0,1e-08]
[1760517926586,3.83473263,113460.0,113450.0,1e-08]
[1760517926782,4.59890339,113460.0,113450.0,1e-08]
[1760517927161,3.48916169,113460.0,113450.0,1e-08]
[1760517927639,4.59890339,113460.0,113450.0,1e-08]
[1760517928355,4.5282571,113460.0,113450.0,1e-08]
[1760517929160,3.39417244,113460.0,113450.0,1e-08]
[1760517930217,3.35799016,113460.0,113450.0,1e-08]
[1760517930421,3.33895437,113460.0,113450.0,1e-08]
[1760517932237,3.37513665,113460.0,113450.0,1e-08]
[1760517932858,3.46236253,113460.0,113450.0,1e-08]
[1760517933682,0.17635129,113410.0,113400.0,0.25208607]
[1760517933888,0.17635129,113410.0,113400.0,0.18533398]
[1760517934235,0.17635129,113410.0,113400.0,0.00014927]
[1760517934433,0.17635129,113410.0,113400.0,0.19415279]
[1760517934638,0.54626519,113410.0,113400.0,0.00014927]
[1760517934842,0.55534115,113410.0,113400.0,0.00014927]
[1760517935040,0.55534115,113410.0,113400.0,0.00214927]
[1760517935448,0.18542725,113410.0,113400.0,0.00214927]
[1760517935651,0.55534115,113410.0,113400.0,0.00314927]
[1760517935850,0.55534115,113410.0,113400.0,0.00014927]
[1760517936272,0.55534115,113410.0,113400.0,0.00114927]
[1760517937632,0.55534115,113410.0,113400.0,0.00014927]
[1760517937951,0.55534115,113410.0,113400.0,0.00114927]
[1760517939482,0.55534115,113410.0,113400.0,0.00399966]
[1760517939684,0.18542725,113410.0,113400.0,0.00399966]
[1760517940002,0.18542725,113410.0,113400.0,0.02163634]
[1760517940205,0.55534115,113410.0,113400.0,0.00399966]
[1760517940412,0.18542725,113410.0,113400.0,0.19800318]
[1760517940612,0.18542725,113410.0,113400.0,0.1803665]
[1760517940814,0.18542725,113410.0,113400.0,0.00399966]
[1760517941098,0.55534115,113410.0,113400.0,0.02163634]
[1760517941448,0.55534115,113410.0,113400.0,0.00399966]
[1760517941633,0.55534115,113410.0,113400.0,0.02163634]
[1760517942147,0.17635129,113410.0,113400.0,0.56791708]
[1760517942354,0.17635129,113410.0,113400.0,0.5502804]
[1760517942774,0.17635129,113410.0,113400.0,0.1803665]
[1760517943203,0.17635129,113410.0,113400.0,0.5502804]
[1760517943784,0.54626147,113440.0,113420.0,0.17633574]
[1760517943785,0.17634757,113440.0,113420.0,0.17633574]
[1760517944067,0.17634757,113440.0,113420.0,0.56388321]
[1760517944274,0.17632019,113430.0,113420.0,0.65756964]
[1760517944854,0.18519036,113440.0,113420.0,0.28765574]
[1760517945058,0.17632019,113430.0,113420.0,0.28765574]
[1760517945448,0.17632019,113430.0,113420.0,0.65756964]
[1760517945846,0.17632019,113430.0,113420.0,0.65856964]
[1760517946047,0.17632019,113430.0,113420.0,0.28865574]
[1760517946375,0.17632019,113430.0,113420.0,0.65856964]
[1760517946969,0.54623409,113430.0,113420.0,0.001]
[1760517947775,0.17632019,113430.0,113420.0,0.19496931]
[1760517947992,0.17632019,113430.0,113420.0,0.54724964]
[1760517948187,0.18519036,113440.0,113420.0,0.54724964]
[1760517948867,1.651114,113440.0,113430.0,0.65755409]
[1760517949172,0.18516383,113450.0,113430.0,0.28878004]
[1760517949385,0.17630465,113440.0,113430.0,0.65755409]
[1760517949852,0.17630465,113440.0,113430.0,0.28764019]
[1760517950188,0.17730465,113440.0,113430.0,0.11132]
[1760517950391,0.54721855,113440.0,113430.0,0.11132]
[1760517950621,0.55529354,113440.0,113430.0,0.11132]
[1760517950818,0.38780412,113440.0,113410.0,0.54626389]
[1760517951021,0.17632019,113430.0,113420.0,0.11132]
[1760517951242,0.17632019,113430.0,113400.0,0.00014927]
[1760517951243,0.17633574,113420.0,113400.0,0.00014927]
[1760517951596,0.54624964,113420.0,113410.0,0.11132]
[1760517951790,0.17633574,113420.0,113410.0,0.11132]
[1760517951955,0.17633574,113420.0,113410.0,0.11232]
[1760517952324,0.54624964,113420.0,113410.0,0.11232]
[1760517952510,0.54624964,113420.0,113410.0,0.28867129]
[1760517952713,0.17633574,113420.0,113410.0,0.28867129]
[1760517953182,0.17633574,113420.0,113410.0,0.11232]
[1760517953381,0.18513619,113430.0,113410.0,0.30630641]
[1760517953680,0.17632851,113430.0,113410.0,0.37736141]
[1760517954090,0.17632851,113430.0,113410.0,0.37836141]
[1760517954231,0.17633574,113420.0,113410.0,0.37836141]
[1760517954432,0.17633574,113420.0,113410.0,0.37736141]
[1760517954627,0.17633574,113420.0,113410.0,0.11132]
[1760517954834,0.17633574,113420.0,113410.0,0.12995512]
[1760517955087,0.17633574,113420.0,113410.0,0.30858652]
[1760517955335,0.17633574,113420.0,113410.0,0.2899514]
[1760517955723,0.17633574,113420.0,113410.0,0.2909514]
[1760517956862,0.17633574,113420.0,113410.0,0.11460011]
[1760517956987,0.17633574,113420.0,113410.0,0.30858652]
[1760517957185,0.17633574,113420.0,113410.0,0.2909514]
[1760517959472,0.17633574,113420.0,113410.0,0.11460011]
[1760517960453,0.17633574,113420.0,113410.0,0.00328011]
[1760517960606,0.17633574,113420.0,113410.0,0.11456011]
[1760517961124,0.70190391,113420.0,113410.0,0.00328011]
[1760517961338,0.70190391,113420.0,113410.0,0.11456011]
[1760517961339,0.17633574,113420.0,113410.0,0.11456011]
[1760517964645,0.70190391,113420.0,113410.0,0.00328011]
[1760517964844,2.35301791,113420.0,113410.0,0.00328011]
[1760517965398,2.47368721,113420.0,113410.0,0.00328011]
[1760517966504,1.82744974,113420.0,113410.0,0.00328011]
[1760517966735,1.82744974,113420.0,113410.0,0.00228011]
[1760517967161,1.82744974,113420.0,113410.0,0.00328011]
[1760517967565,2.47368721,113420.0,113410.0,0.00328011]
[1760517971597,1.82744974,113420.0,113410.0,0.00328011]
[1760517972282,2.81368721,113420.0,113410.0,0.00328011]
[1760517972869,2.16744974,113420.0,113410.0,0.00328011]
[1760517973093,0.51633574,113420.0,113410.0,0.00328011]
[1760517973318,0.51633574,113420.0,113410.0,0.00228011]
[1760517973526,2.16744974,113420.0,113410.0,0.00328011]
[1760517973962,2.16744974,113420.0,113410.0,0.00228011]
[1760517974396,2.16744974,113420.0,113410.0,0.00328011]
[1760517975218,0.11525185,113430.0,113410.0,0.19726652]
[1760517975430,0.17633574,113420.0,113410.0,0.17735129]
[1760517975638,0.11525185,113430.0,113410.0,0.30626641]
[1760517975846,0.17633574,113420.0,113410.0,0.001]
[1760517976460,0.17633574,113420.0,113400.0,0.11142927]
[1760517976461,0.17635129,113410.0,113400.0,0.11142927]
[1760517977581,0.54632083,113410.0,113400.0,0.00114927]
[1760517977785,0.17635129,113410.0,113400.0,0.00114927]
[1760517978614,0.54632083,113410.0,113400.0,0.00114927]
[1760517979406,0.17635129,113410.0,113400.0,0.00114927]
[1760517987084,1.82746529,113410.0,113400.0,0.00114927]
[1760517987283,2.81372596,113410.0,113400.0,0.00114927]
[1760517987518,2.81372596,113410.0,113400.0,0.00399966]
[1760517988255,2.16746529,113410.0,113400.0,0.00399966]
[1760517989493,0.17635129,113410.0,113400.0,0.00399966]
[1760517989727,0.17635129,113410.0,113400.0,0.02163634]
[1760517989890,0.17635129,113410.0,113400.0,0.00399966]
[1760517990369,0.17635129,113410.0,113400.0,0.02163634]
[1760517991520,0.17635129,113410.0,113400.0,0.19800318]
[1760517991742,0.17633574,113420.0,113410.0,0.17635129]
[1760517991946,0.12406785,113430.0,113410.0,0.17635129]
[1760517992180,0.12406785,113430.0,113420.0,0.17633574]
[1760517992389,0.19422155,113440.0,113420.0,0.30524931]
[1760517992586,0.19422155,113440.0,113420.0,0.28761574]
[1760517992790,0.17632019,113430.0,113420.0,0.28761574]
[1760517992950,0.17632019,113430.0,113420.0,0.11128]
[1760517993152,0.17632019,113430.0,113420.0,0.12891357]
[1760517993369,0.19422155,113440.0,113420.0,0.30524931]
[1760517993582,1.82741865,113440.0,113430.0,0.17632019]
[1760517993790,0.17630465,113440.0,113430.0,0.1939522]
[1760517996008,0.17730465,113440.0,113430.0,0.1939522]
[1760517996199,0.17630465,113440.0,113430.0,0.1939522]
[1760517996962,0.18516383,113450.0,113430.0,0.1939522]
[1760517997175,0.18516383,113450.0,113440.0,0.11128]
[1760517997399,0.17628911,113450.0,113440.0,0.28758465]
[1760517997613,0.0087326,113460.0,113440.0,0.28758465]
[1760517997818,0.18500617,113460.0,113450.0,0.01762891]
[1760517998020,0.17627357,113460.0,113450.0,0.01762891]
[1760517998358,0.17627357,113460.0,113450.0,0.01777818]
[1760517998582,0.18502129,113460.0,113450.0,0.01777818]
[1760517999374,0.18502129,113460.0,113450.0,0.00114927]
[1760517999584,0.18502129,113460.0,113450.0,0.00014927]
[1760518002347,0.18502129,113460.0,113450.0,0.11138927]
[1760518004684,0.18502129,113460.0,113450.0,0.00014927]
[1760518004900,0.18502129,113460.0,113450.0,0.01777818]
[1760518005122,0.18502129,113460.0,113450.0,0.12901818]
[1760518005338,2.48239596,113460.0,113450.0,0.00014927]
[1760518006057,1.83613529,113460.0,113450.0,0.00014927]
[1760518006279,0.17628911,113450.0,113440.0,0.11180987]
[1760518006494,0.17628911,113450.0,113440.0,0.11195924]
[1760518006717,0.17628911,113450.0,113440.0,0.00071924]
[1760518007367,0.17628911,113450.0,113440.0,0.00171924]
[1760518008213,0.18502129,113460.0,113440.0,0.19665435]
[1760518008436,0.17628911,113450.0,113440.0,0.17902389]
[1760518008675,0.17628911,113450.0,113440.0,0.29026389]
[1760518008891,0.17628911,113450.0,113440.0,0.17902389]
[1760518009104,0.17628911,113450.0,113440.0,0.28926389]
[1760518009309,0.17628911,113450.0,113440.0,0.28826389]
[1760518009512,0.17628911,113450.0,113440.0,0.00171924]
[1760518009722,0.17628911,113450.0,113440.0,0.1305897]
[1760518010328,0.17628911,113450.0,113440.0,0.0193497]
[1760518010540,0.17628911,113450.0,113440.0,0.1305897]
[1760518010745,0.17628911,113450.0,113440.0,0.00271924]
[1760518010957,0.17628911,113450.0,113440.0,0.00171924]
[1760518011184,0.17628911,113450.0,113440.0,0.00271924]
[1760518017729,2.97366378,113450.0,113440.0,0.00271924]
[1760518017947,2.81366378,113450.0,113440.0,0.00271924]
[1760518018492,2.81366378,113450.0,113440.0,0.00171924]
[1760518018959,2.81366378,113450.0,113440.0,0.00271924]
[1760518019605,2.81366378,113450.0,113440.0,0.00171924]
[1760518021218,2.83692233,113450.0,113440.0,0.00171924]
[1760518021454,2.56067934,113450.0,113440.0,0.00171924]
[1760518021810,2.56067934,113450.0,113440.0,0.00071924]
[1760518022450,2.53742079,113450.0,113440.0,0.00071924]
[1760518022663,2.55394011,113450.0,113440.0,0.00071924]
[1760518023055,2.58045868,113450.0,113440.0,0.00071924]
[1760518023412,2.37403157,113450.0,113440.0,0.00071924]
[1760518023611,2.55032068,113450.0,113440.0,0.00071924]
[1760518024076,2.52380211,113450.0,113440.0,0.00071924]
[1760518024303,2.50728279,113450.0,113440.0,0.00071924]
[1760518027517,2.87728531,113450.0,113440.0,0.00071924]
[1760518031277,2.89379962,113450.0,113440.0,1e-08]
[1760518031480,3.2903293,113450.0,113440.0,1e-08]
[1760518031655,3.31459917,113450.0,113440.0,1e-08]
[1760518032242,2.94458907,113450.0,113440.0,1e-08]
[1760518032661,2.9203192,113450.0,113440.0,1e-08]
[1760518032860,2.9213192,113450.0,113440.0,1e-08]
[1760518034561,3.2913293,113450.0,113440.0,1e-08]
[1760518034781,2.9213192,113450.0,113440.0,1e-08]
[1760518035193,3.2913293,113450.0,113440.0,1e-08]
[1760518035620,3.29133398,113450.0,113440.0,1e-08]
[1760518037524,0.17636684,113400.0,113390.0,0.0004]
[1760518037747,3.24737314,113400.0,113390.0,0.0005496]
[1760518038893,3.24737314,113400.0,113380.0,0.0004]
[1760518038894,0.91640259,113390.0,113380.0,0.0004]
[1760518039114,2.53737859,113390.0,113380.0,0.00054986]
[1760518039337,2.88642123,113390.0,113380.0,0.00054986]
[1760518039812,2.88642123,113390.0,113380.0,1e-08]
[1760518040033,2.89477284,113390.0,113380.0,1e-08]
[1760518040250,2.88642123,113390.0,113380.0,1e-08]
[1760518040661,2.88642123,113390.0,113380.0,0.00100001]
[1760518041311,3.25643133,113390.0,113380.0,0.00100001]
[1760518041517,2.67263817,113390.0,113380.0,0.00100001]
[1760518041934,2.67263817,113390.0,113380.0,1e-08]
[1760518043655,2.67263817,113390.0,113380.0,0.00342124]
[1760518044351,2.71767412,113390.0,113380.0,0.00342124]
[1760518044561,2.69010509,113390.0,113380.0,0.00342124]
[1760518047209,2.72628737,113390.0,113380.0,0.00342124]
[1760518047816,2.74436905,113390.0,113380.0,0.00342124]
[1760518049238,2.72628737,113390.0,113380.0,0.00342124]
[1760518049749,2.73559038,113390.0,113380.0,0.00342124]
[1760518050376,2.6994081,113390.0,113380.0,0.00342124]
[1760518050624,2.14640103,113390.0,113380.0,0.00342124]
[1760518050958,2.67263817,113390.0,113380.0,0.00342124]
[1760518052144,2.68912087,113390.0,113380.0,0.00342124]
[1760518055472,2.68911746,113390.0,113380.0,0.00342124]
[1760518056343,2.69735656,113390.0,113380.0,0.00342124]
[1760518056521,0.20190432,113390.0,113380.0,0.00342124]
[1760518057217,0.19286168,113390.0,113380.0,0.00342124]
[1760518057658,0.19286168,113390.0,113380.0,0.17981919]
[1760518058550,0.01647929,113390.0,113380.0,0.29105919]
[1760518058762,0.18508898,113400.0,113390.0,0.17638239]
[1760518059002,0.17638239,113390.0,113380.0,0.28763796]